[Event "Titled Tuesday Blitz October 18 Late 2022"]
[White "Baskakov, Egor"]
[Black "Naroditsky, Daniel"]
[WhiteFideId "24197866"]
[BlackFideId "2026961"]
[WhiteElo "2211"]
[BlackElo "2628"]
[Result "1/2-1/2"]
[Round "09"]
[TimeControl "180+1"]
[Date "2022.10.18"]
[WhiteClock "0:00:01"]
[BlackClock "0:00:05"]

1. e4 {[%clk 0:03:00]}  d6 {[%clk 0:02:59]} 2. g3 {[%clk 0:03:00]}  c5 {[%clk 0:02:59]} 3. Bg2 {[%clk 0:03:00]}  Nc6 {[%clk 0:03:00]} 4. Ne2 {[%clk 0:03:00]}  g6 {[%clk 0:03:00]} 5. d4 {[%clk 0:03:00]}  cxd4 {[%clk 0:03:00]} 6. Nxd4 {[%clk 0:03:01]}  Bd7 {[%clk 0:03:01]} 7. h3 {[%clk 0:02:58]}  Bg7 {[%clk 0:03:01]} 8. Ne2 {[%clk 0:02:58]}  Nf6 {[%clk 0:03:02]} 9. O-O {[%clk 0:02:58]}  O-O {[%clk 0:03:02]} 10. Nbc3 {[%clk 0:02:58]}  Rc8 {[%clk 0:03:03]} 11. a4 {[%clk 0:02:59]}  a6 {[%clk 0:03:03]} 12. Nd5 {[%clk 0:02:59]}  Ne5 {[%clk 0:02:56]} 13. Ra2 {[%clk 0:02:58]}  Bc6 {[%clk 0:02:35]} 14. b3 {[%clk 0:02:57]}  Ned7 {[%clk 0:02:19]} 15. c4 {[%clk 0:02:50]}  Nc5 {[%clk 0:02:13]} 16. Nec3 {[%clk 0:02:48]}  a5 {[%clk 0:02:10]} 17. Be3 {[%clk 0:02:41]}  Nfd7 {[%clk 0:02:10]} 18. Nb5 {[%clk 0:02:21]}  Rb8 {[%clk 0:01:39]} 19. Re1 {[%clk 0:02:12]}  b6 {[%clk 0:01:39]} 20. Bg5 {[%clk 0:01:58]}  f6 {[%clk 0:01:33]} 21. Bf4 {[%clk 0:01:55]}  Ne5 {[%clk 0:01:30]} 22. Rd2 {[%clk 0:01:50]}  Qe8 {[%clk 0:01:28]} 23. Be3 {[%clk 0:01:47]}  Ned7 {[%clk 0:01:25]} 24. f4 {[%clk 0:01:39]}  Kh8 {[%clk 0:01:23]} 25. Bf2 {[%clk 0:01:39]}  Qf7 {[%clk 0:01:23]} 26. g4 {[%clk 0:01:24]}  Rfe8 {[%clk 0:01:15]} 27. Bd4 {[%clk 0:01:10]}  Rec8 {[%clk 0:01:09]} 28. Na7 {[%clk 0:01:07]}  Bb7 {[%clk 0:00:58]} 29. Nxc8 {[%clk 0:01:07]}  Rxc8 {[%clk 0:00:59]} 30. Rde2 {[%clk 0:01:00]}  Ba6 {[%clk 0:00:54]} 31. e5 {[%clk 0:00:48]}  fxe5 {[%clk 0:00:52]} 32. fxe5 {[%clk 0:00:49]}  Nxe5 {[%clk 0:00:51]} 33. Bxe5 {[%clk 0:00:50]}  Bxe5 {[%clk 0:00:49]} 34. Rxe5 {[%clk 0:00:51]}  dxe5 {[%clk 0:00:49]} 35. Rxe5 {[%clk 0:00:52]}  Rd8 {[%clk 0:00:42]} 36. Qe2 {[%clk 0:00:28]}  e6 {[%clk 0:00:37]} 37. Nxb6 {[%clk 0:00:28]}  Nxb3 {[%clk 0:00:19]} 38. Rxe6 {[%clk 0:00:26]}  Nd4 {[%clk 0:00:19]} 39. Qe5+ {[%clk 0:00:26]}  Qg7 {[%clk 0:00:10]} 40. Re8+ {[%clk 0:00:26]}  Rxe8 {[%clk 0:00:10]} 41. Qxe8+ {[%clk 0:00:27]}  Qg8 {[%clk 0:00:11]} 42. Qe5+ {[%clk 0:00:27]}  Qg7 {[%clk 0:00:12]} 43. Qxa5 {[%clk 0:00:22]}  Qe7 {[%clk 0:00:09]} 44. Nd5 {[%clk 0:00:15]}  Qd6 {[%clk 0:00:05]} 45. Qc7 {[%clk 0:00:12]}  Qxc7 {[%clk 0:00:02]} 46. Nxc7 {[%clk 0:00:12]}  Bxc4 {[%clk 0:00:03]} 47. Bf1 {[%clk 0:00:13]}  Bb3 {[%clk 0:00:02]} 48. a5 {[%clk 0:00:13]}  Nc6 {[%clk 0:00:03]} 49. a6 {[%clk 0:00:13]}  Na7 {[%clk 0:00:02]} 50. Nb5 {[%clk 0:00:12]}  Nc8 {[%clk 0:00:03]} 51. Bg2 {[%clk 0:00:10]}  Bc4 {[%clk 0:00:02]} 52. Bb7 {[%clk 0:00:11]}  Nb6 {[%clk 0:00:01]} 53. Nd6 {[%clk 0:00:09]}  Bxa6 {[%clk 0:00:01]} 54. Bxa6 {[%clk 0:00:09]}  Nd5 {[%clk 0:00:02]} 55. Bf1 {[%clk 0:00:08]}  Kg7 {[%clk 0:00:03]} 56. Ne4 {[%clk 0:00:09]}  h6 {[%clk 0:00:02]} 57. Ng3 {[%clk 0:00:09]}  Kf6 {[%clk 0:00:02]} 58. Kf2 {[%clk 0:00:09]}  Ke5 {[%clk 0:00:03]} 59. Bg2 {[%clk 0:00:09]}  Nf4 {[%clk 0:00:03]} 60. Ne2 {[%clk 0:00:09]}  Ne6 {[%clk 0:00:03]} 61. Bf3 {[%clk 0:00:09]}  Ng5 {[%clk 0:00:02]} 62. Bg2 {[%clk 0:00:08]}  h5 {[%clk 0:00:03]} 63. Kg3 {[%clk 0:00:07]}  hxg4 {[%clk 0:00:03]} 64. Kxg4 {[%clk 0:00:07]}  Ne6 {[%clk 0:00:02]} 65. Ng3 {[%clk 0:00:05]}  Nf4 {[%clk 0:00:02]} 66. Bf1 {[%clk 0:00:04]}  Nd5 {[%clk 0:00:02]} 67. Kg5 {[%clk 0:00:04]}  Ne7 {[%clk 0:00:02]} 68. h4 {[%clk 0:00:04]}  Ke6 {[%clk 0:00:02]} 69. Bc4+ {[%clk 0:00:04]}  Ke5 {[%clk 0:00:02]} 70. Bf7 {[%clk 0:00:05]}  Kd6 {[%clk 0:00:01]} 71. Bxg6 {[%clk 0:00:05]}  Ke6 {[%clk 0:00:02]} 72. Bd3 {[%clk 0:00:05]}  Kf7 {[%clk 0:00:02]} 73. Kh6 {[%clk 0:00:03]}  Ng8+ {[%clk 0:00:02]} 74. Kg5 {[%clk 0:00:03]}  Ne7 {[%clk 0:00:02]} 75. Nh5 {[%clk 0:00:03]}  Nc6 {[%clk 0:00:02]} 76. Bc4+ {[%clk 0:00:04]}  Kf8 {[%clk 0:00:01]} 77. Nf6 {[%clk 0:00:04]}  Ne5 {[%clk 0:00:02]} 78. Bd5 {[%clk 0:00:04]}  Kg7 {[%clk 0:00:02]} 79. h5 {[%clk 0:00:03]}  Kh8 {[%clk 0:00:03]} 80. h6 {[%clk 0:00:03]}  Nf7+ {[%clk 0:00:03]} 81. Kg6 {[%clk 0:00:01]}  Nxh6 {[%clk 0:00:04]} 82. Nd7 {[%clk 0:00:01]}  Ng8 {[%clk 0:00:04]} 83. Ne5 {[%clk 0:00:01]}  Ne7+ {[%clk 0:00:04]} 84. Kf7 {[%clk 0:00:01]}  Nxd5 {[%clk 0:00:05]} 1/2-1/2


[Site "https://www.chess.com"]

[Event "Titled Tuesday Blitz October 18 Late 2022"]
[White "Bilych, Olexiy"]
[Black "Paravyan, David"]
[WhiteFideId "14156504"]
[BlackFideId "4194985"]
[WhiteElo "2320"]
[BlackElo "2555"]
[Result "0-1"]
[Round "09"]
[TimeControl "180+1"]
[Date "2022.10.18"]
[WhiteClock "0:00:06"]
[BlackClock "0:00:02"]

1. e4 {[%clk 0:03:00]}  e5 {[%clk 0:02:59]} 2. Nf3 {[%clk 0:03:01]}  Nf6 {[%clk 0:02:51]} 3. Nxe5 {[%clk 0:03:00]}  d6 {[%clk 0:02:49]} 4. Nf3 {[%clk 0:03:00]}  Nxe4 {[%clk 0:02:50]} 5. d4 {[%clk 0:03:01]}  d5 {[%clk 0:02:48]} 6. Bd3 {[%clk 0:03:01]}  Bd6 {[%clk 0:02:41]} 7. O-O {[%clk 0:03:01]}  O-O {[%clk 0:02:41]} 8. c4 {[%clk 0:03:01]}  c6 {[%clk 0:02:41]} 9. Nc3 {[%clk 0:03:01]}  Nxc3 {[%clk 0:02:40]} 10. bxc3 {[%clk 0:03:02]}  dxc4 {[%clk 0:02:39]} 11. Bxc4 {[%clk 0:03:03]}  Bg4 {[%clk 0:02:39]} 12. h3 {[%clk 0:03:02]}  Bh5 {[%clk 0:02:39]} 13. g4 {[%clk 0:03:02]}  Bg6 {[%clk 0:02:39]} 14. Ne5 {[%clk 0:03:02]}  b5 {[%clk 0:02:39]} 15. Bb3 {[%clk 0:02:59]}  Nd7 {[%clk 0:02:39]} 16. f4 {[%clk 0:02:44]}  Nxe5 {[%clk 0:02:38]} 17. dxe5 {[%clk 0:02:26]}  Bc5+ {[%clk 0:02:35]} 18. Kg2 {[%clk 0:02:26]}  Be4+ {[%clk 0:02:34]} 19. Kg3 {[%clk 0:02:22]}  Qc7 {[%clk 0:02:13]} 20. Qe2 {[%clk 0:02:18]}  Bd5 {[%clk 0:02:12]} 21. Be3 {[%clk 0:02:11]}  Qb6 {[%clk 0:02:03]} 22. Rae1 {[%clk 0:02:05]}  Rfd8 {[%clk 0:01:50]} 23. Qf2 {[%clk 0:01:56]}  Bxe3 {[%clk 0:01:47]} 24. Qxe3 {[%clk 0:01:57]}  c5 {[%clk 0:01:41]} 25. f5 {[%clk 0:01:46]}  c4 {[%clk 0:01:28]} 26. Bc2 {[%clk 0:01:40]}  Bc6 {[%clk 0:01:07]} 27. e6 {[%clk 0:01:35]}  Qxe3+ {[%clk 0:00:55]} 28. Rxe3 {[%clk 0:01:35]}  fxe6 {[%clk 0:00:53]} 29. fxe6 {[%clk 0:01:35]}  Rd2 {[%clk 0:00:51]} 30. Be4 {[%clk 0:01:33]}  Bxe4 {[%clk 0:00:49]} 31. Rxe4 {[%clk 0:01:34]}  Re8 {[%clk 0:00:45]} 32. e7 {[%clk 0:01:19]}  Rd7 {[%clk 0:00:42]} 33. Rf5 {[%clk 0:01:11]}  a6 {[%clk 0:00:40]} 34. a4 {[%clk 0:01:02]}  Rdxe7 {[%clk 0:00:37]} 35. Rxe7 {[%clk 0:01:00]}  Rxe7 {[%clk 0:00:38]} 36. axb5 {[%clk 0:01:01]}  axb5 {[%clk 0:00:39]} 37. Rxb5 {[%clk 0:00:47]}  Re3+ {[%clk 0:00:39]} 38. Kh4 {[%clk 0:00:35]}  h6 {[%clk 0:00:38]} 39. g5 {[%clk 0:00:31]}  hxg5+ {[%clk 0:00:38]} 40. Rxg5 {[%clk 0:00:28]}  Rxc3 {[%clk 0:00:36]} 41. Kg4 {[%clk 0:00:25]}  Rc1 {[%clk 0:00:24]} 42. Rc5 {[%clk 0:00:25]}  c3 {[%clk 0:00:22]} 43. h4 {[%clk 0:00:21]}  c2 {[%clk 0:00:11]} 44. Kh5 {[%clk 0:00:21]}  Kh8 {[%clk 0:00:06]} 45. Rc8+ {[%clk 0:00:20]}  Kh7 {[%clk 0:00:06]} 46. Rc7 {[%clk 0:00:21]}  Kg8 {[%clk 0:00:04]} 47. Rc8+ {[%clk 0:00:14]}  Kf7 {[%clk 0:00:04]} 48. Rc7+ {[%clk 0:00:15]}  Ke6 {[%clk 0:00:05]} 49. Rc8 {[%clk 0:00:14]}  Kf5 {[%clk 0:00:04]} 50. Rc5+ {[%clk 0:00:13]}  Ke4 {[%clk 0:00:04]} 51. Rc4+ {[%clk 0:00:14]}  Kd3 {[%clk 0:00:04]} 52. Rg4 {[%clk 0:00:05]}  Re1 {[%clk 0:00:04]} 53. Rg1 {[%clk 0:00:06]}  g6+ {[%clk 0:00:02]} 0-1


[Site "https://www.chess.com"]

[Event "Titled Tuesday Blitz October 18 Late 2022"]
[White "Bortnyk, Olexandr"]
[Black "Firouzja, Alireza"]
[WhiteFideId "14120828"]
[BlackFideId "12573981"]
[WhiteElo "2723"]
[BlackElo "2903"]
[Result "0-1"]
[Round "09"]
[TimeControl "180+1"]
[Date "2022.10.18"]
[WhiteClock "0:00:05"]
[BlackClock "0:00:15"]

1. e4 {[%clk 0:03:00]}  c6 {[%clk 0:02:57]} 2. c4 {[%clk 0:03:00]}  d5 {[%clk 0:02:55]} 3. cxd5 {[%clk 0:03:00]}  cxd5 {[%clk 0:02:56]} 4. exd5 {[%clk 0:03:01]}  Nf6 {[%clk 0:02:54]} 5. Qa4+ {[%clk 0:03:01]}  Nbd7 {[%clk 0:02:51]} 6. Nc3 {[%clk 0:03:01]}  g6 {[%clk 0:02:51]} 7. Bc4 {[%clk 0:03:01]}  Bg7 {[%clk 0:02:51]} 8. d3 {[%clk 0:03:00]}  O-O {[%clk 0:02:51]} 9. Nf3 {[%clk 0:03:01]}  Nb6 {[%clk 0:02:36]} 10. Qb3 {[%clk 0:03:01]}  Bg4 {[%clk 0:02:26]} 11. Ne5 {[%clk 0:03:01]}  Bf5 {[%clk 0:02:26]} 12. O-O {[%clk 0:03:01]}  Rc8 {[%clk 0:02:19]} 13. Re1 {[%clk 0:03:01]}  Ne8 {[%clk 0:02:01]} 14. Nb5 {[%clk 0:02:43]}  a6 {[%clk 0:01:48]} 15. Nd4 {[%clk 0:02:39]}  Nd6 {[%clk 0:01:47]} 16. Nxf5 {[%clk 0:02:40]}  Nxf5 {[%clk 0:01:48]} 17. Nf3 {[%clk 0:02:13]}  Qc7 {[%clk 0:01:24]} 18. Bf4 {[%clk 0:02:12]}  Qxf4 {[%clk 0:01:24]} 19. Qxb6 {[%clk 0:02:12]}  Qc7 {[%clk 0:01:11]} 20. Qxc7 {[%clk 0:02:08]}  Rxc7 {[%clk 0:01:11]} 21. Re2 {[%clk 0:02:06]}  Nd6 {[%clk 0:01:07]} 22. Bb3 {[%clk 0:02:03]}  Rfc8 {[%clk 0:01:07]} 23. g3 {[%clk 0:01:59]}  Rc1+ {[%clk 0:01:02]} 24. Rxc1 {[%clk 0:01:59]}  Rxc1+ {[%clk 0:01:03]} 25. Kg2 {[%clk 0:02:00]}  Bf6 {[%clk 0:01:01]} 26. Nd2 {[%clk 0:01:35]}  Kf8 {[%clk 0:01:01]} 27. Ne4 {[%clk 0:01:35]}  Bd4 {[%clk 0:00:59]} 28. h4 {[%clk 0:01:28]}  h6 {[%clk 0:00:48]} 29. h5 {[%clk 0:00:46]}  gxh5 {[%clk 0:00:45]} 30. Rd2 {[%clk 0:00:36]}  b5 {[%clk 0:00:42]} 31. Bd1 {[%clk 0:00:35]}  Bxb2 {[%clk 0:00:38]} 32. Bxh5 {[%clk 0:00:32]}  Bd4 {[%clk 0:00:38]} 33. Nxd6 {[%clk 0:00:21]}  exd6 {[%clk 0:00:38]} 34. Bg4 {[%clk 0:00:22]}  Rc5 {[%clk 0:00:27]} 35. Kf3 {[%clk 0:00:13]}  a5 {[%clk 0:00:15]} 36. Ke4 {[%clk 0:00:13]}  Bc3 {[%clk 0:00:15]} 37. Rd1 {[%clk 0:00:13]}  Rc7 {[%clk 0:00:15]} 38. Rb1 {[%clk 0:00:11]}  b4 {[%clk 0:00:15]} 39. f4 {[%clk 0:00:10]}  a4 {[%clk 0:00:13]} 40. Bd1 {[%clk 0:00:10]}  b3 {[%clk 0:00:13]} 41. Bxb3 {[%clk 0:00:05]}  Re7+ {[%clk 0:00:13]} 42. Kf5 {[%clk 0:00:05]}  axb3 {[%clk 0:00:13]} 43. Rxb3 {[%clk 0:00:06]}  Bd4 {[%clk 0:00:14]} 44. a4 {[%clk 0:00:05]}  Ra7 {[%clk 0:00:10]} 45. Rb4 {[%clk 0:00:06]}  Bc3 {[%clk 0:00:10]} 46. Rc4 {[%clk 0:00:06]}  Be1 {[%clk 0:00:10]} 47. g4 {[%clk 0:00:07]}  Kg7 {[%clk 0:00:10]} 48. g5 {[%clk 0:00:07]}  h5 {[%clk 0:00:10]} 49. Ke4 {[%clk 0:00:07]}  Re7+ {[%clk 0:00:10]} 50. Kf3 {[%clk 0:00:07]}  Bd2 {[%clk 0:00:10]} 51. Re4 {[%clk 0:00:06]}  Ra7 {[%clk 0:00:08]} 52. Rc4 {[%clk 0:00:06]}  Ra5 {[%clk 0:00:08]} 53. Ke4 {[%clk 0:00:06]}  h4 {[%clk 0:00:09]} 54. Rc2 {[%clk 0:00:02]}  Rxa4+ {[%clk 0:00:09]} 55. d4 {[%clk 0:00:03]}  Ba5 {[%clk 0:00:08]} 56. Rh2 {[%clk 0:00:02]}  Bb6 {[%clk 0:00:08]} 57. Rxh4 {[%clk 0:00:02]}  Rxd4+ {[%clk 0:00:09]} 58. Kf3 {[%clk 0:00:03]}  Rxd5 {[%clk 0:00:09]} 59. Rh1 {[%clk 0:00:03]}  Rd3+ {[%clk 0:00:09]} 60. Ke4 {[%clk 0:00:03]}  Rd4+ {[%clk 0:00:09]} 61. Kf3 {[%clk 0:00:03]}  d5 {[%clk 0:00:10]} 62. Rb1 {[%clk 0:00:03]}  Bc7 {[%clk 0:00:10]} 63. Rb7 {[%clk 0:00:03]}  Rxf4+ {[%clk 0:00:11]} 64. Ke3 {[%clk 0:00:04]}  Be5 {[%clk 0:00:11]} 65. Re7 {[%clk 0:00:04]}  Re4+ {[%clk 0:00:11]} 66. Kf3 {[%clk 0:00:04]}  Kg6 {[%clk 0:00:12]} 67. Rd7 {[%clk 0:00:04]}  Rd4 {[%clk 0:00:12]} 68. Re7 {[%clk 0:00:04]}  Rf4+ {[%clk 0:00:12]} 69. Ke3 {[%clk 0:00:04]}  Rf5 {[%clk 0:00:13]} 70. Rd7 {[%clk 0:00:05]}  d4+ {[%clk 0:00:13]} 71. Ke4 {[%clk 0:00:05]}  Rxg5 {[%clk 0:00:14]} 72. Rd8 {[%clk 0:00:05]}  f6 {[%clk 0:00:14]} 73. Rg8+ {[%clk 0:00:05]}  Kf7 {[%clk 0:00:15]} 74. Ra8 {[%clk 0:00:05]}  Rg4+ {[%clk 0:00:15]} 75. Kf5 {[%clk 0:00:05]}  Rf4# {[%clk 0:00:15]} 0-1


[Site "https://www.chess.com"]

[Event "Titled Tuesday Blitz October 18 Late 2022"]
[White "Chan, Kim Yew"]
[Black "Zhurbinsky, David"]
[WhiteFideId "5717981"]
[BlackFideId "2072904"]
[WhiteElo "2206"]
[BlackElo "2588"]
[Result "0-1"]
[Round "09"]
[TimeControl "180+1"]
[Date "2022.10.19"]
[WhiteClock "0:00:02"]
[BlackClock "0:00:50"]

1. d4 {[%clk 0:03:00]}  Nf6 {[%clk 0:02:59]} 2. Bg5 {[%clk 0:03:00]}  e6 {[%clk 0:02:59]} 3. e4 {[%clk 0:02:58]}  Be7 {[%clk 0:02:59]} 4. Bd3 {[%clk 0:02:48]}  d6 {[%clk 0:02:57]} 5. Nf3 {[%clk 0:02:43]}  Nc6 {[%clk 0:02:52]} 6. O-O {[%clk 0:02:41]}  e5 {[%clk 0:02:50]} 7. c3 {[%clk 0:02:38]}  O-O {[%clk 0:02:48]} 8. Nbd2 {[%clk 0:02:34]}  Bg4 {[%clk 0:02:46]} 9. h3 {[%clk 0:02:31]}  Bh5 {[%clk 0:02:46]} 10. Re1 {[%clk 0:02:20]}  Re8 {[%clk 0:02:40]} 11. d5 {[%clk 0:01:58]}  Nb8 {[%clk 0:02:37]} 12. Be3 {[%clk 0:01:48]}  Nbd7 {[%clk 0:02:30]} 13. Nf1 {[%clk 0:01:46]}  Bg6 {[%clk 0:02:22]} 14. Ng3 {[%clk 0:01:40]}  c6 {[%clk 0:02:20]} 15. c4 {[%clk 0:01:31]}  cxd5 {[%clk 0:02:15]} 16. cxd5 {[%clk 0:01:24]}  Rc8 {[%clk 0:02:15]} 17. Rc1 {[%clk 0:00:52]}  Qa5 {[%clk 0:02:06]} 18. Qb3 {[%clk 0:00:47]}  Bf8 {[%clk 0:01:40]} 19. Bd2 {[%clk 0:00:33]}  Qb6 {[%clk 0:01:33]} 20. Qa3 {[%clk 0:00:18]}  a6 {[%clk 0:01:07]} 21. Be3 {[%clk 0:00:18]}  Qd8 {[%clk 0:01:05]} 22. Qb4 {[%clk 0:00:18]}  b5 {[%clk 0:00:59]} 23. a4 {[%clk 0:00:17]}  Nxd5 {[%clk 0:00:57]} 24. exd5 {[%clk 0:00:05]}  Bxd3 {[%clk 0:00:58]} 25. axb5 {[%clk 0:00:03]}  axb5 {[%clk 0:00:58]} 26. Rc6 {[%clk 0:00:02]}  Nf6 {[%clk 0:00:50]} 0-1


[Site "https://www.chess.com"]

[Event "Titled Tuesday Blitz October 18 Late 2022"]
[White "Czernek, Tymon"]
[Black "Tan, Ralph"]
[WhiteFideId "1199510"]
[BlackFideId "30966590"]
[WhiteElo "2240"]
[BlackElo "2059"]
[Result "1-0"]
[Round "09"]
[TimeControl "180+1"]
[Date "2022.10.18"]
[WhiteClock "0:01:58"]
[BlackClock "0:00:21"]

1. e4 {[%clk 0:02:58]}  e6 {[%clk 0:02:59]} 2. d4 {[%clk 0:02:58]}  d5 {[%clk 0:02:59]} 3. Nc3 {[%clk 0:02:59]}  Nf6 {[%clk 0:02:58]} 4. e5 {[%clk 0:02:59]}  Nfd7 {[%clk 0:02:59]} 5. f4 {[%clk 0:03:00]}  c5 {[%clk 0:02:59]} 6. Nf3 {[%clk 0:03:01]}  Nc6 {[%clk 0:02:59]} 7. Be3 {[%clk 0:03:01]}  a6 {[%clk 0:02:59]} 8. Qd2 {[%clk 0:03:02]}  cxd4 {[%clk 0:02:59]} 9. Nxd4 {[%clk 0:03:03]}  Bc5 {[%clk 0:02:59]} 10. Nce2 {[%clk 0:02:59]}  Nxd4 {[%clk 0:02:54]} 11. Nxd4 {[%clk 0:02:59]}  O-O {[%clk 0:02:52]} 12. Bd3 {[%clk 0:02:58]}  b5 {[%clk 0:02:44]} 13. O-O {[%clk 0:02:53]}  Bb7 {[%clk 0:02:35]} 14. c3 {[%clk 0:02:51]}  Bxd4 {[%clk 0:02:30]} 15. Bxd4 {[%clk 0:02:52]}  f6 {[%clk 0:02:30]} 16. exf6 {[%clk 0:02:50]}  Nxf6 {[%clk 0:02:31]} 17. f5 {[%clk 0:02:46]}  exf5 {[%clk 0:02:28]} 18. Bxf5 {[%clk 0:02:45]}  Ne4 {[%clk 0:02:21]} 19. Qd3 {[%clk 0:02:42]}  Qg5 {[%clk 0:02:16]} 20. Qh3 {[%clk 0:02:34]}  h6 {[%clk 0:01:47]} 21. Be3 {[%clk 0:02:33]}  Qe7 {[%clk 0:01:41]} 22. Be6+ {[%clk 0:02:32]}  Kh8 {[%clk 0:01:39]} 23. Bxh6 {[%clk 0:02:29]}  Qxe6 {[%clk 0:00:44]} 24. Qxe6 {[%clk 0:02:23]}  gxh6 {[%clk 0:00:42]} 25. Qxh6+ {[%clk 0:02:24]}  Kg8 {[%clk 0:00:42]} 26. Qg6+ {[%clk 0:02:23]}  Kh8 {[%clk 0:00:42]} 27. Qh5+ {[%clk 0:02:17]}  Kg8 {[%clk 0:00:40]} 28. Qg4+ {[%clk 0:02:17]}  Kh8 {[%clk 0:00:39]} 29. Qd7 {[%clk 0:02:12]}  Nc5 {[%clk 0:00:32]} 30. Qh3+ {[%clk 0:02:06]}  Kg8 {[%clk 0:00:32]} 31. Qg3+ {[%clk 0:02:06]}  Kh8 {[%clk 0:00:32]} 32. Qh4+ {[%clk 0:02:05]}  Kg8 {[%clk 0:00:31]} 33. Qg4+ {[%clk 0:02:05]}  Kh7 {[%clk 0:00:30]} 34. Qh5+ {[%clk 0:02:05]}  Kg8 {[%clk 0:00:29]} 35. Qg5+ {[%clk 0:02:05]}  Kh8 {[%clk 0:00:26]} 36. Qh6+ {[%clk 0:02:05]}  Kg8 {[%clk 0:00:26]} 37. Qg6+ {[%clk 0:02:01]}  Kh8 {[%clk 0:00:26]} 38. Qd6 {[%clk 0:01:59]}  Rxf1+ {[%clk 0:00:21]} 39. Rxf1 {[%clk 0:02:00]}  Ne4 {[%clk 0:00:21]} 40. Qe5+ {[%clk 0:01:58]}  Kg8 {[%clk 0:00:21]} 41. Qe6+ {[%clk 0:01:58]}  Kh8 {[%clk 0:00:21]} 42. Qh6+ {[%clk 0:01:57]}  Kg8 {[%clk 0:00:21]} 43. Qg6+ {[%clk 0:01:58]}  Kh8 {[%clk 0:00:21]} 44. Rf7 {[%clk 0:01:58]} 1-0


[Site "https://www.chess.com"]

[Event "Titled Tuesday Blitz October 18 Late 2022"]
[White "D`Arruda, Ricardo D."]
[Black "Roque Sola, Gisela"]
[WhiteFideId "100692"]
[BlackFideId "5120241"]
[WhiteElo "2388"]
[BlackElo "1961"]
[Result "1-0"]
[Round "09"]
[TimeControl "180+1"]
[Date "2022.10.19"]
[WhiteClock "0:00:29"]
[BlackClock "0:00:17"]

1. d4 {[%clk 0:02:59]}  Nf6 {[%clk 0:02:58]} 2. Nf3 {[%clk 0:02:59]}  g6 {[%clk 0:02:54]} 3. Nc3 {[%clk 0:02:59]}  d5 {[%clk 0:02:53]} 4. Bg5 {[%clk 0:02:58]}  Bg7 {[%clk 0:02:51]} 5. Bxf6 {[%clk 0:02:58]}  exf6 {[%clk 0:02:49]} 6. e3 {[%clk 0:02:58]}  O-O {[%clk 0:02:48]} 7. Ne2 {[%clk 0:02:57]}  Bg4 {[%clk 0:02:45]} 8. c3 {[%clk 0:02:54]}  Re8 {[%clk 0:02:40]} 9. Qc2 {[%clk 0:02:47]}  c6 {[%clk 0:02:38]} 10. Nf4 {[%clk 0:02:41]}  Qc7 {[%clk 0:02:34]} 11. O-O-O {[%clk 0:02:39]}  a5 {[%clk 0:02:30]} 12. Be2 {[%clk 0:02:36]}  b5 {[%clk 0:02:28]} 13. Nd2 {[%clk 0:02:34]}  Bf5 {[%clk 0:02:27]} 14. Bd3 {[%clk 0:02:34]}  Bxd3 {[%clk 0:02:26]} 15. Nxd3 {[%clk 0:02:34]}  Nd7 {[%clk 0:02:23]} 16. h4 {[%clk 0:02:33]}  c5 {[%clk 0:02:23]} 17. dxc5 {[%clk 0:02:31]}  Nxc5 {[%clk 0:02:22]} 18. Nxc5 {[%clk 0:02:31]}  Qxc5 {[%clk 0:02:22]} 19. Nb3 {[%clk 0:02:31]}  Qc6 {[%clk 0:02:19]} 20. Qd3 {[%clk 0:02:30]}  b4 {[%clk 0:02:12]} 21. Qxd5 {[%clk 0:02:29]}  Qa4 {[%clk 0:02:12]} 22. Nc5 {[%clk 0:02:22]}  Qb5 {[%clk 0:02:10]} 23. c4 {[%clk 0:02:22]}  Qb6 {[%clk 0:02:09]} 24. Na4 {[%clk 0:02:12]}  Qc7 {[%clk 0:02:06]} 25. Kb1 {[%clk 0:01:55]}  Rad8 {[%clk 0:02:04]} 26. Qc5 {[%clk 0:01:55]}  Qb7 {[%clk 0:02:00]} 27. Rd5 {[%clk 0:01:46]}  Rc8 {[%clk 0:01:51]} 28. Qb5 {[%clk 0:01:40]}  Qe7 {[%clk 0:01:42]} 29. Nc5 {[%clk 0:01:30]}  Bf8 {[%clk 0:01:32]} 30. Nd3 {[%clk 0:01:05]}  Qe4 {[%clk 0:01:29]} 31. f3 {[%clk 0:00:56]}  Qxe3 {[%clk 0:01:27]} 32. Re1 {[%clk 0:00:50]}  Qd2 {[%clk 0:00:33]} 33. Rxe8 {[%clk 0:00:46]}  Rxe8 {[%clk 0:00:23]} 34. Qxe8 {[%clk 0:00:45]}  b3 {[%clk 0:00:20]} 35. axb3 {[%clk 0:00:40]}  a4 {[%clk 0:00:19]} 36. Nc1 {[%clk 0:00:32]}  Qxg2 {[%clk 0:00:17]} 37. Rd8 {[%clk 0:00:29]} 1-0


[Site "https://www.chess.com"]

[Event "Titled Tuesday Blitz October 18 Late 2022"]
[White "Daeschler, Florian"]
[Black "Tomaszewski, Kacper"]
[WhiteFideId "20678193"]
[BlackFideId "1127373"]
[WhiteElo "2187"]
[BlackElo "2211"]
[Result "1/2-1/2"]
[Round "09"]
[TimeControl "180+1"]
[Date "2022.10.19"]
[WhiteClock "0:00:39"]
[BlackClock "0:00:02"]

1. e4 {[%clk 0:03:00]}  e5 {[%clk 0:03:00]} 2. Nc3 {[%clk 0:02:53]}  Nf6 {[%clk 0:02:59]} 3. f4 {[%clk 0:02:53]}  d6 {[%clk 0:02:55]} 4. Nf3 {[%clk 0:02:52]}  Nc6 {[%clk 0:02:54]} 5. Bc4 {[%clk 0:02:53]}  Be7 {[%clk 0:02:48]} 6. O-O {[%clk 0:02:53]}  O-O {[%clk 0:02:48]} 7. d3 {[%clk 0:02:53]}  exf4 {[%clk 0:02:37]} 8. Bxf4 {[%clk 0:02:53]}  Be6 {[%clk 0:02:37]} 9. Bb3 {[%clk 0:02:36]}  Bxb3 {[%clk 0:02:30]} 10. axb3 {[%clk 0:02:37]}  Ng4 {[%clk 0:02:24]} 11. h3 {[%clk 0:02:33]}  Nge5 {[%clk 0:02:24]} 12. d4 {[%clk 0:02:32]}  Ng6 {[%clk 0:02:16]} 13. Bg3 {[%clk 0:02:30]}  Re8 {[%clk 0:02:12]} 14. Nd5 {[%clk 0:02:26]}  Bf8 {[%clk 0:02:11]} 15. Qd3 {[%clk 0:02:26]}  Nce7 {[%clk 0:02:05]} 16. Ne3 {[%clk 0:02:18]}  c6 {[%clk 0:01:47]} 17. Ng5 {[%clk 0:02:16]}  Nh8 {[%clk 0:01:39]} 18. e5 {[%clk 0:02:14]}  Neg6 {[%clk 0:01:39]} 19. Qf5 {[%clk 0:02:00]}  dxe5 {[%clk 0:01:25]} 20. Nxf7 {[%clk 0:01:56]}  Qxd4 {[%clk 0:01:17]} 21. Rae1 {[%clk 0:01:49]}  Nf4 {[%clk 0:00:46]} 22. Nxh8 {[%clk 0:01:35]}  Kxh8 {[%clk 0:00:43]} 23. Bxf4 {[%clk 0:01:32]}  exf4 {[%clk 0:00:42]} 24. Rxf4 {[%clk 0:01:33]}  Qc5 {[%clk 0:00:36]} 25. Re4 {[%clk 0:01:20]}  g6 {[%clk 0:00:20]} 26. Qf6+ {[%clk 0:01:05]}  Bg7 {[%clk 0:00:20]} 27. Qf3 {[%clk 0:00:58]}  Rxe4 {[%clk 0:00:14]} 28. Qxe4 {[%clk 0:00:58]}  Rf8 {[%clk 0:00:13]} 29. Kh1 {[%clk 0:00:57]}  Bxb2 {[%clk 0:00:11]} 30. Ng4 {[%clk 0:00:54]}  Bg7 {[%clk 0:00:09]} 31. c4 {[%clk 0:00:53]}  h5 {[%clk 0:00:09]} 32. Nh2 {[%clk 0:00:48]}  Qf5 {[%clk 0:00:08]} 33. Qe7 {[%clk 0:00:44]}  Qf7 {[%clk 0:00:06]} 34. Qe4 {[%clk 0:00:44]}  Qf5 {[%clk 0:00:06]} 35. Qe7 {[%clk 0:00:43]}  Qf7 {[%clk 0:00:05]} 36. Qe4 {[%clk 0:00:39]}  Qf5 {[%clk 0:00:02]} 1/2-1/2


[Site "https://www.chess.com"]